{"text_format":"1","workbook":"xlsx","n_sheets":1,"sheets":["Mechanisms"],"not_rendered":{"charts":0,"images":1,"macros":1,"external_links":0,"defined_names":2,"comments":0,"pivot_tables":0},"unopened":[],"bounds":{"document_bytes":16777216,"sheet_cells":100000,"rows_first":2000,"rows_last":500,"rows_between":2000,"halvings":0,"cell_chars":16384,"cell_head_chars":4096},"cells_cut":0,"cells_raw":0,"read":"whole","date_system":"1900"}

{"sheet":"Mechanisms","index":0,"n_rows":53,"n_cols":12,"rows_kept":53,"cut":false,"hidden":false,"merged":[[10,8,10,9],[3,8,3,9],[4,8,4,9],[5,8,5,9],[8,8,8,9],[9,8,9,9],[48,1,48,4],[48,7,48,12],[53,7,53,12],[53,3,53,4],[49,7,52,10]]}
[]
[]
[]
[null,null,null,null,null,null,null,"Name"]
[null,null,null,null,null,null,null,"Address"]
[null,null,null,null,null,null,null,"City"]
[null,null,null,null,null,null,null,"Postcode"]
[]
[null,null,null,null,null,null,null,"Phone"]
[null,null,null,null,null,null,null,"Mobile"]
[null,null,null,null,null,null,null,"Email"]
[]
[null,null,"Mechanisms Price List",null,null,null,null,null,"Total Value",{"$f":"SUM(K16:K44)","v":0}]
[]
[null,null,"Part No","Name","Basic Price","Qty Basic","Basic + Price","QTY Basic + ","Premium Price","QTY Premium","TOTAL","Ordered"]
[null,null,"NYA001","Trainorama 44/930 Mech",195,null,215,null,235,null,{"$f":"IF((E16*F16)+(G16*H16)+(I16*J16)=0,\"\",(E16*F16)+(G16*H16)+(I16*J16))","v":""},{"$f":"IF(OR(F16>0,H16>0,J16>0)=TRUE,1,\"\")","v":""}]
[null,null,"NYA002","Power Line 81 Class",195,null,215,null,235,null,{"$f":"IF((E17*F17)+(G17*H17)+(I17*J17)=0,\"\",(E17*F17)+(G17*H17)+(I17*J17))","v":""},{"$f":"IF(OR(F17>0,H17>0,J17>0)=TRUE,1,\"\")","v":""}]
[null,null,"NYA003","Power Line 48 Class",195,null,215,null,235,null,{"$f":"IF((E18*F18)+(G18*H18)+(I18*J18)=0,\"\",(E18*F18)+(G18*H18)+(I18*J18))","v":""},""]
[null,null,"NYA004","Power Line G Class",195,null,215,null,235,null,"",""]
[null,null,"NYA005","Power Line BL Class",195,null,215,null,235,null,"",""]
[null,null,"NYA006","Lima 42/S/GM",195,null,215,null,235,null,"",""]
[null,null,"NYA007","Lima B Class",195,null,215,null,235,null,"",""]
[null,null,"NYA008","Lima 422",195,null,215,null,235,null,"",""]
[null,null,"NYA009","Austrains C Class",195,null,215,null,235,null,"",""]
[null,null,"NYA010","Austrains 80 Class",195,null,215,null,235,null,"",""]
[null,null,"NYA011","Austrains 442 Class",195,null,215,null,235,null,"",""]
[null,null,"NYA012","AR Kits 81 Class",195,null,215,null,235,null,"",""]
[null,null,"NYA013","AR Kits 44 Class",195,null,215,null,235,null,"",""]
[null,null,"NYA014","AR Kits 43 Class",195,null,215,null,235,null,"",""]
[null,null,"NYA015","AR Kits 421 Class",195,null,215,null,235,null,"",""]
[null,null,"NYA016","AR Kits 40 Class",195,null,215,null,235,null,"",""]
[null,null,"NYA017","AR Kits 82 Class",195,null,215,null,235,null,"",""]
[null,null,"NYA018","Bergs 80 Class",195,null,215,null,235,null,"",""]
[null,null,"NYA019","Bergs 82 Class",195,null,215,null,235,null,"",""]
[null,null,"NYA020","Bergs 47 Class",195,null,215,null,235,null,"",""]
[null,null,"NYA021","Bergs 49 Class",195,null,215,null,235,null,"",""]
[null,null,"NYA022","Bergs 48 Class",195,null,215,null,235,null,"",""]
[null,null,"NYA023","Bergs 41 Class",195,null,215,null,235,null,"",""]
[null,null,"NYA024","Bergs 82 Class",195,null,215,null,235,null,"",""]
[null,null,"NYA025","Bergs 73 Class",195,null,215,null,235,null,"",""]
[null,null,"NYA026","Riverossi Krauss Maffaei",195,null,215,null,235,null,"",""]
[null,null,"NYA027","Main West 41 Class",195,null,215,null,235,null,"",""]
[null,null,"NYA028","SAR BGB 900 Class",195,null,215,null,235,null,"",""]
[null,null,"NYA029","AR Kits 620/720 Class",195,null,215,null,235,null,"",""]
[]
[]
[]
[]
[null,"Shipping Instructions",null,null,null,null,null,"Special Requests"]
[null,null,"Address: "]
[null,null,"City: "]
[null,null,"State: "]
[null,null,"Postcode: "]